fUSD/lending_fUSD_20240403
["ID","MTS","AMOUNT","RATE_DAILY","PERIOD"]
[321421394,1712182246437,-197.38677701,0.00037936,7]
[321421395,1712182246447,-156.58470025,0.00038,4]
[321421396,1712182246457,-600.0,0.00038,39]
[321421397,1712182246467,-1000.0,0.00038,7]
[321421398,1712182246479,-1000.0,0.00038,7]
[321421399,1712182246491,-1000.0,0.00038,7]
[321421400,1712182246500,-1005.0,0.00038,3]
[321421401,1712182246510,-2100.0,0.00038,7]
[321421402,1712182246519,-1117.8,0.00038027,15]
[321421403,1712182246529,-150.0,0.00038068,2]
[321421404,1712182246539,-341.966755,0.000381,12]
[321421405,1712182246548,-1132.15809311,0.00038126,2]
[321421406,1712182246559,-3767.05768836,0.00038213,2]
[321421407,1712182246571,-153.25551136,0.0003824,7]
[321421408,1712182246580,-197.38677701,0.0003825,7]
[321421409,1712182246592,-152.0,0.00038256,4]
[321421410,1712182246601,-166.76874565,0.00038264,7]
[321421411,1712182246611,-1000.0,0.00038356,30]
[321421412,1712182246621,-6566.6,0.00038356,7]
[321421413,1712182246630,-564.15,0.00038356,30]
[321421414,1712182246640,-250.0,0.00038356,2]
[321421415,1712182246649,-509.54232732,0.00038401,7]
[321421416,1712182246659,-154.25630045,0.00038429,7]
[321421417,1712182246669,-1000.0,0.00038461,30]
[321421418,1712182246679,-155.78714103,0.00038461,7]
[321421419,1712182246688,-1442.48,0.000385,7]
[321421420,1712182246697,-1343.31,0.000385,7]
[321421421,1712182246707,-1377.56,0.000385,7]
[321421422,1712182246716,-158.95167049,0.00038517,7]
[321421423,1712182246726,-602.12417404,0.00038523,7]
[321421424,1712182246735,-211.70038815,0.00038576,7]
[321421425,1712182246745,-509.54232732,0.00038659,7]
[321421426,1712182246755,-155.0,0.000387,4]
[321421427,1712182246766,-1052.25,0.00038785,2]
[321421428,1712182246776,-4216.29442521,0.000388,2]
[321421429,1712182246786,-564.15,0.00038822,30]
[321421430,1712182246796,-151.29625457,0.00038827,7]
[321421431,1712182246806,-168.21803369,0.00038835,7]
[321421432,1712182246815,-596.95865573,0.0003888,2]
[321421433,1712182246824,-211.70038815,0.00038888,7]
[321421434,1712182246835,-505.35291494,0.000389,2]
[321421435,1712182246845,-4064.11230153,0.000389,15]
[321421436,1712182246855,-150.0,0.00038907,2]
[321421437,1712182246868,-150.0,0.00038933,2]
[321421438,1712182246878,-150.0,0.00038935,2]
[321421439,1712182246889,-150.0,0.00038936,2]
[321421440,1712182246898,-150.0,0.00038965,2]
[321421441,1712182246907,-2260.94119041,0.0003897,2]
[321421442,1712182246916,-1000.0,0.0003897,2]
[321421443,1712182246925,-2829.00098145,0.00038989,19]
[321421444,1712182246934,-150.0,0.00038996,2]
[321421445,1712182246944,-6899.95,0.00039,10]
[321421446,1712182246952,-23526.57874668,0.00039,2]
[321421447,1712182246962,-600.0,0.00039,40]
[321421448,1712182246971,-806.0,0.00039,13]
[321421449,1712182246980,-806.0,0.00039,13]
[321421450,1712182246988,-1014.44,0.00039,2]
[321421451,1712182246997,-308.56,0.00039,2]
[321421452,1712182247006,-150.0,0.00039016,2]
[321421453,1712182247015,-152.0,0.00039051,5]
[321421454,1712182247024,-150.0,0.00039084,2]
[321421455,1712182247033,-150.0,0.00039095,2]
[321421456,1712182247043,-150.0,0.0003912,2]
[321421457,1712182247052,-500.0,0.00039131,7]
[321421458,1712182247061,-500.0,0.00039131,7]
[321421459,1712182247070,-500.0,0.00039131,7]
[321421460,1712182247080,-500.0,0.00039131,7]
[321421461,1712182247089,-500.0,0.00039131,7]
[321421462,1712182247098,-500.0,0.00039131,7]
[321421463,1712182247107,-364.84,0.00039131,7]
[321421464,1712182247116,-500.0,0.00039131,7]
[321421465,1712182247125,-500.0,0.00039131,7]
[321421466,1712182247135,-500.0,0.00039131,7]
[321421467,1712182247144,-500.0,0.00039131,7]
[321421468,1712182247153,-500.0,0.00039131,7]
[321421469,1712182247162,-500.0,0.00039131,7]
[321421470,1712182247172,-500.0,0.00039131,7]
[321421471,1712182247182,-500.0,0.00039131,7]
[321421472,1712182247193,-500.0,0.00039131,7]
[321421473,1712182247202,-500.0,0.00039131,7]
[321421474,1712182247213,-500.0,0.00039131,7]
[321421475,1712182247224,-500.0,0.00039131,7]
[321421476,1712182247232,-500.0,0.00039131,7]
[321421477,1712182247243,-500.0,0.00039131,7]
[321421478,1712182247253,-500.0,0.00039131,7]
[321421479,1712182247263,-500.0,0.00039131,7]
[321421480,1712182247272,-500.0,0.00039131,7]
[321421481,1712182247281,-500.0,0.00039131,7]
[321421482,1712182247291,-500.0,0.00039131,7]
[321421483,1712182247301,-500.0,0.00039131,7]
[321421484,1712182247310,-500.0,0.00039131,7]
[321421485,1712182247319,-500.0,0.00039131,7]
[321421486,1712182247329,-500.0,0.00039131,7]
[321421487,1712182247339,-500.0,0.00039131,7]
[321421488,1712182247351,-500.0,0.00039131,7]
[321421489,1712182247360,-500.0,0.00039131,7]
[321421490,1712182247371,-500.0,0.00039131,7]
[321421491,1712182247381,-500.0,0.00039131,7]
[321421492,1712182247392,-500.0,0.00039131,7]
[321421493,1712182247403,-500.0,0.00039131,7]
[321421494,1712182247412,-500.0,0.00039131,7]
[321421495,1712182247423,-500.0,0.00039131,7]
[321421496,1712182247433,-456.94,0.00039131,7]
[321421497,1712182247442,-500.0,0.00039131,7]
[321421498,1712182247451,-500.0,0.00039131,7]
[321421499,1712182247460,-500.0,0.00039131,7]
[321421500,1712182247470,-500.0,0.00039131,7]
[321421501,1712182247479,-500.0,0.00039131,7]
[321421502,1712182247488,-500.0,0.00039131,7]
[321421503,1712182247498,-500.0,0.00039131,7]
[321421504,1712182247507,-500.0,0.00039131,7]
[321421505,1712182247515,-500.0,0.00039131,7]
[321421506,1712182247525,-500.0,0.00039131,7]
[321421507,1712182247533,-500.0,0.00039131,7]
[321421508,1712182247542,-500.0,0.00039131,7]
[321421509,1712182247551,-500.0,0.00039131,7]
[321421510,1712182247560,-500.0,0.00039131,7]
[321421511,1712182247570,-500.0,0.00039131,7]
[321421512,1712182247579,-500.0,0.00039131,7]
[321421513,1712182247590,-500.0,0.00039131,7]
[321421514,1712182247599,-500.0,0.00039131,7]
[321421515,1712182247608,-500.0,0.00039131,7]
[321421516,1712182247618,-429.94,0.00039131,7]
[321421517,1712182247629,-500.0,0.00039131,7]
[321421518,1712182247640,-500.0,0.00039131,7]
[321421519,1712182247650,-500.0,0.00039131,7]
[321421520,1712182247659,-500.0,0.00039131,7]
[321421521,1712182247669,-500.0,0.00039131,7]
[321421522,1712182247681,-150.0,0.0003914,2]
[321421523,1712182247690,-150.0,0.00039146,2]
[321421524,1712182247699,-211.70038815,0.00039153,7]
[321421525,1712182247709,-150.0,0.00039175,2]
[321421526,1712182247719,-150.0,0.00039175,2]
[321421527,1712182247730,-150.0,0.00039196,2]
[321421528,1712182247740,-1026.76025851,0.000392,2]
[321421529,1712182247750,-1149.1286489,0.000392,2]
[321421530,1712182247761,-159.96854777,0.00039221,7]
[321421531,1712182247773,-150.0,0.00039249,2]
[321421532,1712182247783,-150.0,0.0003925,2]
[321421533,1712182247792,-150.0,0.00039252,2]
[321421534,1712182247803,-291.67523411,0.00039254,7]
[321421535,1712182247812,-564.15,0.0003926,30]
[321421536,1712182247821,-150.0,0.00039261,2]
[321421537,1712182247831,-602.12417404,0.00039266,7]
[321421538,1712182247840,-1059.93362803,0.00039272,2]
[321421539,1712182247850,-1071.24771555,0.00039272,2]
[321421540,1712182247860,-197.38677701,0.00039274,7]
[321421541,1712182247869,-150.0,0.00039282,2]
[321421542,1712182247878,-291.67523411,0.00039282,7]
[321421543,1712182247889,-150.0,0.00039294,2]
[321421544,1712182247898,-388.42808272,0.00039294,7]
[321421545,1712182247907,-150.0,0.00039298,2]
[321421546,1712182247915,-150.0,0.00039309,2]
[321421547,1712182247924,-150.0,0.00039311,2]
[321421548,1712182247934,-1004.68452928,0.00039328,2]
[321421549,1712182247942,-1030.04686817,0.00039328,2]
[321421550,1712182247951,-1144.06938337,0.00039328,2]
[321421551,1712182247960,-1122.68231992,0.00039328,2]
[321421552,1712182247970,-1129.89413328,0.00039328,2]
[321421553,1712182247978,-150.0,0.00039333,2]
[321421554,1712182247987,-150.0,0.00039347,2]
[321421555,1712182247996,-150.0,0.00039365,2]
[321421556,1712182248006,-150.0,0.00039366,2]
[321421557,1712182248016,-150.0,0.00039387,2]
[321421558,1712182248025,-157.33985921,0.00039393,7]
[321421559,1712182248034,-150.0,0.00039398,2]
[321421560,1712182248043,-150.0,0.00039411,2]
[321421561,1712182248052,-150.0,0.00039424,2]
[321421562,1712182248062,-150.0,0.00039439,2]
[321421563,1712182248073,-150.0,0.00039449,2]
[321421564,1712182248083,-150.0,0.00039465,2]
[321421565,1712182248093,-150.0,0.00039471,2]
[321421566,1712182248102,-150.0,0.00039471,2]
[321421567,1712182248112,-150.0,0.00039477,2]
[321421568,1712182248123,-150.0,0.00039481,2]
[321421569,1712182248136,-150.0,0.00039483,2]
[321421570,1712182248147,-150.0,0.00039511,2]
[321421571,1712182248158,-151.29625457,0.00039516,7]
[321421572,1712182248169,-150.0,0.00039519,2]
[321421573,1712182248321,-150.0,0.00039526,2]
[321421574,1712182248332,-150.0,0.00039528,2]
[321421575,1712182248342,-150.0,0.00039528,2]
[321421576,1712182248351,-150.0,0.00039546,2]
[321421577,1712182248360,-300.0,0.0003955,2]
[321421578,1712182248369,-150.0,0.00039555,2]
[321421579,1712182248379,-151.29625457,0.00039564,7]
[321421580,1712182248390,-150.0,0.00039568,2]
[321421581,1712182248399,-150.0,0.00039577,2]
[321421582,1712182248409,-150.0,0.0003959,2]
[321421583,1712182248418,-197.38677701,0.00039605,7]
[321421584,1712182248427,-150.0,0.00039613,2]
[321421585,1712182248437,-150.0,0.00039621,2]
[321421586,1712182248446,-150.0,0.00039626,2]
[321421587,1712182248456,-150.0,0.00039638,2]
[321421588,1712182248466,-150.0,0.00039641,2]
[321421589,1712182248475,-155.2251499,0.00039643,7]
[321421590,1712182248486,-155.2251499,0.00039644,7]
[321421591,1712182248495,-150.0,0.00039647,2]
[321421592,1712182248506,-150.0,0.00039664,2]
[321421593,1712182248515,-150.0,0.0003967,2]
[321421594,1712182248524,-150.0,0.00039686,2]
[321421595,1712182248533,-291.67523411,0.00039688,7]
[321421596,1712182248542,-150.0,0.00039689,2]
[321421597,1712182248553,-13556.26858245,0.0003971,2]
[321421598,1712182248562,-55288.33070303,0.0003971,2]
[321421599,1712182248571,-291.67523411,0.00039713,7]
[321421600,1712182248581,-168.13795655,0.0003972,5]
[321421601,1712182248594,-211.70038815,0.00039724,7]
[321421602,1712182248603,-564.15,0.00039726,30]
[321421603,1712182248613,-150.0,0.00039732,2]
[321421604,1712182248622,-388.42808272,0.00039738,7]
[321421605,1712182248632,-388.42808272,0.0003974,7]
[321421606,1712182248641,-150.0,0.00039744,2]
[321421607,1712182248650,-150.0,0.00039751,2]
[321421608,1712182248660,-150.0,0.00039752,2]
[321421609,1712182248670,-150.0,0.0003977,2]
[321421610,1712182248680,-150.0,0.00039771,2]
[321421611,1712182248690,-211.70038815,0.00039771,7]
[321421612,1712182248699,-150.0,0.00039773,2]
[321421613,1712182248708,-150.0,0.00039773,2]
[321421614,1712182248717,-150.0,0.00039775,2]
[321421615,1712182248726,-150.0,0.00039786,2]
[321421616,1712182248736,-150.0,0.00039798,2]
[321421617,1712182248745,-1442.48,0.000398,7]
[321421618,1712182248755,-1343.31,0.000398,7]
[321421619,1712182248765,-1377.56,0.000398,7]
[321421620,1712182248774,-200.0,0.000398,2]
[321421621,1712182248783,-279.52300476,0.000398,2]
[321421622,1712182248792,-150.0,0.00039802,2]
[321421623,1712182248801,-150.0,0.00039804,2]
[321421624,1712182248811,-150.0,0.0003981,2]
[321421625,1712182248820,-150.0,0.00039814,2]
[321421626,1712182248829,-150.0,0.00039816,2]
[321421627,1712182248838,-150.0,0.00039819,2]
[321421628,1712182248847,-153.63115965,0.00039825,7]
[321421629,1712182248856,-176.26740746,0.00039829,7]
[321421630,1712182248864,-150.0,0.00039835,2]
[321421631,1712182248874,-152.0,0.00039846,6]
[321421632,1712182248883,-602.12417404,0.00039847,7]
[321421633,1712182248892,-211.70038815,0.00039863,7]
[321421634,1712182248901,-150.0,0.00039868,2]
[321421635,1712182248910,-300.0,0.00039868,2]
[321421636,1712182248919,-155.2251499,0.0003987,7]
[321421637,1712182248929,-1372.005788,0.0003988,17]
[321421638,1712182248939,-1108612.96674136,0.00039888,2]
[321421639,1712182248948,-1000.0,0.000399,2]
[321421640,1712182248957,-1000.0,0.000399,2]
[321421641,1712182248966,-1000.0,0.000399,2]
[321421642,1712182248975,-238.60921491,0.000399,48]
[321421643,1712182248984,-238.60921491,0.000399,48]
[321421644,1712182248993,-238.60921491,0.000399,48]
[321421645,1712182249002,-238.60921491,0.000399,48]
[321421646,1712182249011,-238.60921491,0.000399,48]
[321421647,1712182249021,-238.60921491,0.000399,48]
[321421648,1712182249030,-238.60921491,0.000399,48]
[321421649,1712182249038,-238.60921491,0.000399,48]
[321421650,1712182249047,-238.60921491,0.000399,48]
[321421651,1712182249056,-238.60921491,0.000399,48]
[321421652,1712182249065,-1000.0,0.000399,17]
[321421653,1712182249074,-150.0,0.00039913,2]
[321421654,1712182249083,-150.0,0.0003992,2]
[321421655,1712182249092,-1000.0,0.0003992,17]
[321421656,1712182249101,-150.0,0.00039936,2]
[321421657,1712182249111,-150.0,0.00039937,2]
[321421658,1712182249121,-1000.0,0.0003994,17]
[321421659,1712182249130,-153.63115965,0.00039942,7]
[321421660,1712182249139,-150.0,0.00039943,2]
[321421661,1712182249148,-150.0,0.00039946,2]
[321421662,1712182249157,-150.0,0.00039953,2]
[321421663,1712182249166,-1000.0,0.0003996,17]
[321421664,1712182249175,-501.26262752,0.0003997,2]
[321421665,1712182249184,-400.0,0.0003997,2]
[321421666,1712182249193,-150.0,0.00039971,2]
[321421667,1712182249202,-150.0,0.00039976,2]
[321421668,1712182249212,-1000.0,0.0003998,17]
[321421669,1712182249222,-150.0,0.00039986,2]
[321421670,1712182249231,-150.0,0.00039989,2]
[321421671,1712182249240,-200.0,0.0003999,7]
[321421672,1712182249261,-222.23500266,0.0003999,7]
[321421673,1712182249276,-200.0,0.0003999,7]
[321421674,1712182249294,-200.0,0.0003999,7]
[321421675,1712182249312,-200.0,0.0003999,7]
[321421676,1712182249328,-200.0,0.0003999,7]
[321421677,1712182249346,-200.0,0.0003999,7]
[321421678,1712182249363,-200.0,0.0003999,7]
[321421679,1712182249381,-200.0,0.0003999,7]
[321421680,1712182249399,-150.0,0.00039991,2]
[321421681,1712182249416,-1202.0,0.0004,30]
[321421682,1712182249435,-22098.16965284,0.0004,4]
[321421683,1712182249453,-5757.17728566,0.0004,4]
[321421684,1712182249466,-1100.0,0.0004,7]
[321421685,1712182249483,-546.40226944,0.0004,4]
[321421686,1712182249500,-192.70693193,0.0004,2]
[321421687,1712182249513,-500.0,0.0004,2]
[321421688,1712182249528,-5068.67041179,0.0004,21]
[321421689,1712182249544,-391288.56798865,0.0004,2]
[321421690,1712182249559,-1163.052,0.0004,2]
[321421691,1712182249574,-607.84717864,0.0004,21]
[321421692,1712182249590,-1200.0,0.0004,10]
[321421693,1712182249604,-1000.0,0.0004,2]
[321421694,1712182249619,-28637.37,0.0004,10]
[321421695,1712182249633,-1564.16238683,0.0004,30]
[321421696,1712182249648,-600.0,0.0004,41]
[321421697,1712182249663,-1018.42220439,0.0004,60]
[321421698,1712182249678,-463.45136824,0.0004,15]
[321421699,1712182249692,-444.70145682,0.0004,30]
[321421700,1712182249710,-488.25325885,0.0004,30]
[321421701,1712182249724,-425.0703485,0.0004,30]
[321421702,1712182249738,-25914.40770215,0.0004,7]
[321421703,1712182249752,-270.55234812,0.0004,30]
[321421704,1712182249765,-262.52416993,0.0004,2]
[321421705,1712182249779,-272.52074903,0.0004,2]
[321421706,1712182249794,-778.0,0.0004,2]
[321421707,1712182249808,-8978.32367948,0.0004,2]
[321421708,1712182249823,-243.13,0.0004,10]
[321421709,1712182249838,-250.0,0.0004,30]
[321421710,1712182249853,-150.0,0.0004,2]
[321421711,1712182249867,-1000.0,0.0004,17]
[321421712,1712182249890,-475.260357,0.0004,2]
[321421713,1712182249904,-2390.66112526,0.0004,2]
[321421714,1712182249919,-2390.66112526,0.0004,2]
[321421715,1712182249934,-2390.66112526,0.0004,2]
[321421716,1712182249948,-2390.66112526,0.0004,2]
[321421717,1712182249963,-2390.66112526,0.0004,2]
[321421718,1712182249977,-2390.66112526,0.0004,2]
[321421719,1712182249993,-2390.66112526,0.0004,2]
[321421720,1712182250008,-2390.66112526,0.0004,2]
[321421721,1712182250022,-2390.66112526,0.0004,2]
[321421722,1712182250037,-2390.66112526,0.0004,2]
[321421723,1712182250052,-2390.66112526,0.0004,2]
[321421724,1712182250067,-2390.66112526,0.0004,2]
[321421725,1712182250082,-2390.66112526,0.0004,2]
[321421726,1712182250097,-2390.66112526,0.0004,2]
[321421727,1712182250111,-2390.66112526,0.0004,2]
[321421728,1712182250126,-2390.66112526,0.0004,2]
[321421729,1712182250141,-2390.66112526,0.0004,2]
[321421730,1712182250156,-2390.66112526,0.0004,2]
[321421731,1712182250171,-2390.66112526,0.0004,2]
[321421732,1712182250186,-2390.66112526,0.0004,2]
[321421733,1712182250200,-2390.66112526,0.0004,2]
[321421734,1712182250214,-2390.66112526,0.0004,2]
[321421735,1712182250229,-2390.66112526,0.0004,2]
[321421736,1712182250244,-2390.66112526,0.0004,2]
[321421737,1712182250259,-2390.66112526,0.0004,2]
[321421738,1712182250274,-2390.66112526,0.0004,2]
[321421739,1712182250290,-2390.66112526,0.0004,2]
[321421740,1712182250305,-2390.66112526,0.0004,2]
[321421741,1712182250319,-2390.66112526,0.0004,2]
[321421742,1712182250334,-2390.66112526,0.0004,2]
[321421743,1712182250349,-150.0,0.00040001,2]
[321421744,1712182250363,-150.0,0.00040012,2]
[321421745,1712182250378,-1000.0,0.0004002,17]
[321421746,1712182250393,-3519.0,0.00040022,5]
[321421747,1712182250408,-150.0,0.00040035,2]
[321421748,1712182250423,-150.0,0.0004004,2]
[321421749,1712182250438,-1000.0,0.0004004,17]
[321421750,1712182250453,-1174.001929,0.0004004,17]
[321421751,1712182250467,-150.0,0.00040051,2]
[321421752,1712182250482,-150.0,0.00040056,2]
[321421753,1712182250496,-150.0,0.00040059,2]
[321421754,1712182250511,-150.0,0.0004006,2]
[321421755,1712182250526,-150.0,0.0004006,2]
[321421756,1712182250541,-1000.0,0.0004006,17]
[321421757,1712182250556,-1000.0,0.0004006,17]
[321421758,1712182250571,-155.78714103,0.00040064,30]
[321421759,1712182250588,-400.0,0.0004007,3]
[321421760,1712182250604,-1000.0,0.0004007,3]
[321421761,1712182250619,-1000.0,0.0004007,3]
[321421762,1712182250635,-400.0,0.0004007,3]
[321421763,1712182250650,-1000.0,0.0004007,3]
[321421764,1712182250665,-1000.0,0.0004007,3]
[321421765,1712182250681,-400.0,0.0004007,3]
[321421766,1712182250696,-1000.0,0.0004007,3]
[321421767,1712182250711,-1000.0,0.0004008,17]
[321421768,1712182250725,-1000.0,0.0004008,17]
[321421769,1712182250742,-200.0,0.00040094,7]
[321421770,1712182250992,-1000.0,0.00040096,2]
[321421771,1712182251002,-1000.0,0.00040096,2]
[321421772,1712182251011,-150.0,0.00040096,2]
[321421773,1712182251020,-480.0,0.000401,26]
[321421774,1712182251029,-961.0,0.000401,26]
[321421775,1712182251038,-150.0,0.000401,27]
[321421776,1712182251047,-961.0,0.000401,26]
[321421777,1712182251056,-200.0,0.000401,15]
[321421778,1712182251066,-1014.44,0.000401,2]
[321421779,1712182251076,-1000.0,0.000401,17]
[321421780,1712182251085,-1000.0,0.000401,17]
[321421781,1712182251095,-308.56,0.000401,2]
[321421782,1712182251104,-894.0,0.000401,30]
[321421783,1712182251113,-389.32561534,0.00040102,15]
[321421784,1712182251123,-1828.54434568,0.00040102,10]
[321421785,1712182251133,-3352.54061562,0.00040102,4]
[321421786,1712182251142,-175.23267945,0.00040102,2]
[321421787,1712182251151,-255.9583516,0.00040102,30]
[321421788,1712182251161,-213.38147942,0.00040102,30]
[321421789,1712182251172,-200.0,0.00040102,2]
[321421790,1712182251181,-816.39859742,0.00040102,30]
[321421791,1712182251190,-209.48496784,0.00040103,2]
[321421792,1712182251199,-2000.0,0.00040104,7]
[321421793,1712182251209,-200.0,0.00040104,7]
[321421794,1712182251218,-2859.79128481,0.00040118,30]
[321421795,1712182251228,-200.0,0.00040152,7]
[321421796,1712182251237,-564.15,0.00040192,30]
[321421797,1712182251246,-176.26740746,0.0004023,30]
[321421798,1712182251256,-509.54232732,0.00040286,30]
[321421799,1712182251265,-203.19613583,0.00040329,30]
[321421800,1712182251275,-388.42808272,0.0004034,30]
[321421801,1712182251284,-153.25551136,0.00040356,30]
[321421802,1712182251293,-153.63115965,0.00040406,30]
[321421803,1712182251302,-1014.44,0.00040415,2]
[321421804,1712182251312,-155.78714103,0.00040477,30]
[321421805,1712182251321,-291.67523411,0.00040501,30]
[321421806,1712182251330,-200.0,0.00040505,7]
[321421807,1712182251339,-153.63115965,0.0004052,30]
[321421808,1712182251348,-155.40310942,0.00040533,30]
[321421809,1712182251357,-308.56,0.00040565,2]
[321421810,1712182251366,-155.2251499,0.00040616,30]
[321421811,1712182251376,-564.15,0.0004063,30]
[321421812,1712182251385,-152.0,0.00040641,7]
[321421813,1712182251395,-155.78714103,0.00040659,30]
[321421814,1712182251404,-150.0,0.00040663,2]
[321421815,1712182251413,-151.87,0.00040685,2]
[321421816,1712182251423,-176.5801345,0.00040735,30]
[321421817,1712182251432,-210.599516,0.00040759,2]
[321421818,1712182251441,-1117.8,0.00040767,15]
[321421819,1712182251451,-155.2251499,0.00040776,30]
[321421820,1712182251461,-11004.51,0.00040822,2]
[321421821,1712182251470,-153.54975412,0.00040839,30]
[321421822,1712182251480,-509.54232732,0.00040854,30]
[321421823,1712182251489,-197.38677701,0.00040892,30]
[321421824,1712182251499,-200.0,0.0004091,7]
[321421825,1712182251510,-150.0,0.00040966,120]
[321421826,1712182251519,-600.0,0.00041,42]
[321421827,1712182251528,-504.59683706,0.00041,2]
[321421828,1712182251538,-150.29,0.00041,2]
[321421829,1712182251548,-150.29,0.00041,2]
[321421830,1712182251557,-150.29,0.00041,2]
[321421831,1712182251566,-150.29,0.00041,2]
[321421832,1712182251576,-150.29,0.00041,2]
[321421833,1712182251586,-150.29,0.00041,2]
[321421834,1712182251597,-150.29,0.00041,2]
[321421835,1712182251606,-150.29,0.00041,2]
[321421836,1712182251616,-150.29,0.00041,2]
[321421837,1712182251626,-150.29,0.00041,2]
[321421838,1712182251637,-150.29,0.00041,2]
[321421839,1712182251646,-150.29,0.00041,2]
[321421840,1712182251655,-150.29,0.00041,2]
[321421841,1712182251666,-150.29,0.00041,2]
[321421842,1712182251676,-150.29,0.00041,2]
[321421843,1712182251686,-150.29,0.00041,2]
[321421844,1712182251695,-150.29,0.00041,2]
[321421845,1712182251704,-150.29,0.00041,2]
[321421846,1712182251713,-150.29,0.00041,2]
[321421847,1712182251723,-150.29,0.00041,2]
[321421848,1712182251732,-150.29,0.00041,2]
[321421849,1712182251742,-150.29,0.00041,2]
[321421850,1712182251751,-150.29,0.00041,2]
[321421851,1712182251760,-150.29,0.00041,2]
[321421852,1712182251770,-150.29,0.00041,2]
[321421853,1712182251779,-150.29,0.00041,2]
[321421854,1712182251788,-150.29,0.00041,2]
[321421855,1712182251798,-150.29,0.00041,2]
[321421856,1712182251807,-150.29,0.00041,2]
[321421857,1712182251816,-150.29,0.00041,2]
[321421858,1712182251825,-1052.25,0.00041049,2]
[321421859,1712182251835,-291.67523411,0.00041085,30]
[321421860,1712182251844,-564.15,0.00041096,30]
[321421861,1712182251854,-1000.0,0.00041096,5]
[321421862,1712182251863,-1000.0,0.00041096,5]
[321421863,1712182251872,-1000.0,0.00041096,5]
[321421864,1712182251882,-1000.0,0.00041096,5]
[321421865,1712182251891,-1000.0,0.00041096,5]
[321421866,1712182251900,-1000.0,0.00041096,5]
[321421867,1712182251910,-1000.0,0.00041096,5]
[321421868,1712182251919,-1000.0,0.00041096,5]
[321421869,1712182251928,-1000.0,0.00041096,5]
[321421870,1712182251937,-1000.0,0.00041096,5]
[321421871,1712182251947,-1000.0,0.00041096,5]
[321421872,1712182251956,-1000.0,0.00041096,5]
[321421873,1712182251965,-1000.0,0.00041096,5]
[321421874,1712182251975,-1000.0,0.00041096,5]
[321421875,1712182251984,-1000.0,0.00041096,5]
[321421876,1712182251993,-1000.0,0.00041096,5]
[321421877,1712182252002,-1000.0,0.00041096,5]
[321421878,1712182252012,-1000.0,0.00041096,5]
[321421879,1712182252022,-1000.0,0.00041096,5]
[321421880,1712182252031,-1000.0,0.00041096,5]
[321421881,1712182252041,-1000.0,0.00041096,5]
[321421882,1712182252049,-1000.0,0.00041096,5]
[321421883,1712182252059,-1000.0,0.00041096,5]
[321421884,1712182252068,-1000.0,0.00041096,5]
[321421885,1712182252078,-1000.0,0.00041096,5]
[321421886,1712182252087,-1000.0,0.00041096,5]
[321421887,1712182252096,-1000.0,0.00041096,5]
[321421888,1712182252105,-1000.0,0.00041096,5]
[321421889,1712182252114,-1000.0,0.00041096,5]
[321421890,1712182252123,-1000.0,0.00041096,5]
[321421891,1712182252133,-1000.0,0.00041096,5]
[321421892,1712182252142,-1000.0,0.00041096,5]
[321421893,1712182252151,-1000.0,0.00041096,5]